bitfinex/quotes_BTCUSD_20240911
["timestamp","ask_amount","ask_price","bid_price","bid_amount"]
[1726064643684,0.50747323,55994.0,55993.0,0.0036291]
[1726064644338,0.50747323,55994.0,55993.0,0.1822221]
[1726064644565,0.50747323,55994.0,55993.0,0.0036291]
[1726064645023,0.50747323,55994.0,55993.0,0.1822221]
[1726064645240,0.50747323,55994.0,55993.0,0.0036291]
[1726064645474,0.50547323,55994.0,55993.0,0.1822221]
[1726064645703,0.50547323,55994.0,55993.0,0.0036291]
[1726064645995,3.65716323,55994.0,55993.0,0.0036291]
[1726064646227,4.06647684,55994.0,55993.0,0.0036291]
[1726064646462,4.01434423,55994.0,55993.0,0.0036291]
[1726064646905,3.92334423,55994.0,55993.0,0.0036291]
[1726064647331,3.92334423,55994.0,55978.0,0.1]
[1726064647332,0.50747323,55979.0,55978.0,0.1]
[1726064647767,0.50747323,55979.0,55978.0,0.278641]
[1726064647768,0.50547323,55979.0,55978.0,0.278641]
[1726064647989,0.50547323,55979.0,55978.0,0.1]
[1726064647990,0.50747323,55979.0,55978.0,0.1]
[1726064648209,1.36851984,55979.0,55978.0,0.1]
[1726064648449,1.31638723,55979.0,55978.0,0.1]
[1726064648684,0.78047323,55979.0,55978.0,0.1]
[1726064649141,0.77647323,55979.0,55978.0,0.278641]
[1726064649361,0.77847323,55979.0,55978.0,0.1]
[1726064649574,0.77847323,55979.0,55978.0,0.635924]
[1726064649802,0.79901595,55979.0,55978.0,1.05701106]
[1726064650031,2.39447323,55982.0,55981.0,0.535896]
[1726064650032,2.389,55982.0,55981.0,0.535896]
[1726064650275,2.389,55982.0,55981.0,0.558896]
[1726064650498,2.39447323,55982.0,55981.0,0.178632]
[1726064650713,2.39447323,55982.0,55981.0,0.534896]
[1726064651153,0.35747323,55977.0,55976.0,0.0021166]
[1726064651367,0.35947323,55977.0,55976.0,0.0021166]
[1726064651593,0.5,55980.0,55979.0,0.178638]
[1726064651821,0.271,55981.0,55980.0,1.250445]
[1726064652036,2.389,55982.0,55981.0,0.178632]
[1726064652284,2.389,55982.0,55976.0,0.0021166]
[1726064652285,0.002,55977.0,55976.0,0.0021166]
[1726064652516,2.266522,55977.0,55976.0,0.0021166]
[1726064653171,2.623811,55977.0,55976.0,0.0021166]
[1726064653418,4.59375261,55977.0,55976.0,0.0021166]
[1726064654068,4.95104161,55977.0,55976.0,0.0021166]
[1726064654341,5.30833061,55977.0,55976.0,0.0021166]
[1726064654998,4.95104161,55977.0,55976.0,0.0021166]
[1726064655903,4.59375261,55977.0,55976.0,0.0021166]
[1726064656349,4.95104161,55977.0,55976.0,0.0021166]
[1726064656567,4.59375261,55977.0,55976.0,0.0021166]
[1726064656794,3.65121961,55977.0,55976.0,0.0021166]
[1726064657014,3.45751961,55977.0,55976.0,0.1807636]
[1726064657229,3.45751961,55977.0,55976.0,0.0021166]
[1726064657471,3.45751961,55977.0,55976.0,0.1807636]
[1726064657923,3.45751961,55977.0,55976.0,0.5380586]
[1726064658147,3.45551961,55977.0,55976.0,0.5380586]
[1726064658388,3.45751961,55977.0,55976.0,0.0021166]
[1726064658616,5.14426322,55977.0,55976.0,0.0021166]
[1726064659303,1.600578,55974.0,55973.0,0.0043807]
[1726064659531,3.95252695,55974.0,55973.0,0.0043807]
[1726064659741,5.59909635,55974.0,55973.0,0.0043807]
[1726064659956,4.88448035,55974.0,55973.0,0.0043807]
[1726064660168,4.08267235,55974.0,55973.0,0.0043807]
[1726064660397,4.25001835,55974.0,55973.0,0.0043807]
[1726064660628,4.87067235,55974.0,55973.0,0.0043807]
[1726064660849,0.343,55978.0,55977.0,0.893222]
[1726064661092,0.343,55978.0,55977.0,0.178644]
[1726064661093,0.843,55978.0,55977.0,0.178644]
[1726064661383,0.843,55978.0,55973.0,0.6101807]
[1726064661384,0.002,55977.0,55973.0,0.0043807]
[1726064661614,0.002,55977.0,55976.0,0.178647]
[1726064661844,0.002,55977.0,55976.0,0.180277]
[1726064662324,0.002,55977.0,55976.0,0.537572]
[1726064662574,0.002,55977.0,55976.0,0.00163]
[1726064662834,0.002,55977.0,55976.0,0.537572]
[1726064663068,0.002,55977.0,55976.0,0.00163]
[1726064663297,0.629433,55977.0,55976.0,0.00163]
[1726064663769,0.65745221,55977.0,55976.0,0.00163]
[1726064664003,1.01474121,55977.0,55976.0,0.00163]
[1726064664246,1.40794121,55977.0,55976.0,0.00163]
[1726064664715,1.05065221,55977.0,55976.0,0.00163]
[1726064664931,0.51471921,55977.0,55976.0,0.00163]
[1726064665177,0.69336321,55977.0,55976.0,0.00163]
[1726064665396,1.05065221,55977.0,55976.0,0.00163]
[1726064666048,2.52962377,55977.0,55976.0,0.00163]
[1726064666495,1.75516321,55977.0,55976.0,0.00163]
[1726064666709,1.00251921,55977.0,55976.0,0.180277]
[1726064666923,1.00251921,55977.0,55976.0,0.00163]
[1726064667357,1.89574121,55977.0,55976.0,0.00163]
[1726064667585,1.95562377,55977.0,55976.0,0.00163]
[1726064668069,1.00251921,55977.0,55976.0,0.00163]
[1726064668529,1.00251921,55977.0,55976.0,0.180277]
[1726064669266,1.00251921,55977.0,55976.0,0.894867]
[1726064669485,1.00251921,55977.0,55976.0,0.537572]
[1726064669707,1.00251921,55977.0,55976.0,0.894867]
[1726064669926,1.00051921,55977.0,55976.0,0.894867]
[1726064670350,1.00251921,55977.0,55976.0,0.537572]
[1726064670585,1.00051921,55977.0,55976.0,0.894867]
[1726064670807,1.00051921,55977.0,55976.0,0.180277]
[1726064670808,0.9745,55977.0,55976.0,0.180277]
[1726064671029,0.9745,55977.0,55976.0,0.00163]
[1726064671243,0.9725,55977.0,55976.0,0.537572]
[1726064671442,0.9745,55977.0,55976.0,0.180277]
[1726064672128,0.9745,55977.0,55976.0,0.894867]
[1726064672129,0.881,55977.0,55976.0,0.894867]
[1726064672351,0.881,55977.0,55976.0,1.40081817]
[1726064672587,0.881,55977.0,55976.0,0.894867]
[1726064672818,0.881,55977.0,55976.0,0.00163]
[1726064672819,1.768933,55977.0,55976.0,0.00163]
[1726064673064,2.73109356,55977.0,55976.0,0.00163]
[1726064673553,1.956633,55977.0,55976.0,0.00163]
[1726064673988,1.26102146,55977.0,55976.0,0.00163]
[1726064674209,1.43966546,55977.0,55976.0,0.00163]
[1726064674657,2.51153246,55977.0,55976.0,0.00163]
[1726064674871,1.26102146,55977.0,55976.0,0.00163]
[1726064675760,1.27270421,55977.0,55976.0,0.00163]
[1726064676201,2.16592621,55977.0,55976.0,0.00163]
[1726064676672,2.98237415,55977.0,55976.0,0.00163]
[1726064676900,2.91204121,55977.0,55976.0,0.00163]
[1726064677400,2.11651921,55977.0,55976.0,0.00163]
[1726064677626,2.29516321,55977.0,55976.0,0.00163]
[1726064678078,2.11651921,55977.0,55976.0,0.180277]
[1726064678294,2.11451921,55977.0,55976.0,0.894867]
[1726064678478,2.11651921,55977.0,55976.0,0.00163]
[1726064678723,2.11651921,55977.0,55976.0,0.894867]
[1726064679170,2.11651921,55977.0,55976.0,1.252162]
[1726064679171,1.31083646,55977.0,55976.0,1.252162]
[1726064679392,1.31083646,55977.0,55976.0,2.16957557]
[1726064679393,0.81083646,55977.0,55976.0,2.16957557]
[1726064679610,0.02883646,55977.0,55976.0,2.39828557]
[1726064680223,0.02883646,55977.0,55976.0,2.81358057]
[1726064680439,0.000815,55977.0,55976.0,2.81358057]
[1726064680656,0.000815,55977.0,55976.0,2.42628557]
[1726064681533,0.000815,55977.0,55976.0,2.300467]
[1726064681761,0.000815,55977.0,55976.0,2.314467]
[1726064682358,0.000815,55977.0,55976.0,2.300467]
[1726064682634,0.000815,55977.0,55976.0,2.671762]
[1726064682855,0.000815,55980.0,55979.0,1.344376]
[1726064683042,0.000815,55980.0,55979.0,2.326752]
[1726064683807,0.000815,55980.0,55979.0,2.684028]
[1726064684005,0.02800686,55987.0,55986.0,2.266554]
[1726064684414,0.02300686,55987.0,55986.0,2.266554]
[1726064684577,0.02300686,55987.0,55986.0,2.44272355]
[1726064684787,0.02300686,55987.0,55986.0,2.82995555]
[1726064684988,0.002,56010.0,56005.0,0.023]
[1726064685332,0.002,56010.0,56009.0,0.892712]
[1726064685854,0.02999992,56010.0,56009.0,0.892712]
[1726064686056,0.02799992,56010.0,56009.0,2.019382]
[1726064686269,1.224,56015.0,56014.0,1.587342]
[1726064686270,0.785,56015.0,56014.0,1.587342]
[1726064686475,0.785,56015.0,56014.0,1.914395]
[1726064686878,0.812996,56015.0,56014.0,1.884395]
[1726064688171,0.027996,56015.0,56014.0,2.329448]
[1726064688619,0.027996,56015.0,56014.0,2.686501]
[1726064688825,0.027996,56015.0,56014.0,2.329448]
[1726064689027,0.027996,56015.0,56014.0,2.331448]
[1726064689237,0.027996,56015.0,56014.0,2.329448]
[1726064689480,0.028811,56015.0,56014.0,2.342448]
[1726064690310,0.028811,56015.0,56014.0,2.344448]
[1726064691161,0.028811,56015.0,56014.0,2.688501]
[1726064691387,0.028811,56015.0,56014.0,2.345448]
[1726064691772,0.028811,56015.0,56014.0,2.313448]
[1726064692019,0.028811,56015.0,56014.0,2.299448]
[1726064692260,0.028811,56015.0,56014.0,2.313448]
[1726064692476,0.028811,56015.0,56014.0,1.875395]
[1726064692689,0.028811,56015.0,56014.0,1.903395]
[1726064692896,0.028811,56015.0,56014.0,1.889395]
[1726064693132,0.028811,56015.0,56014.0,1.282132]
[1726064693335,0.028811,56015.0,56014.0,0.892632]
[1726064693770,0.028811,56015.0,56014.0,0.178526]
[1726064693975,0.05680623,56015.0,56014.0,0.178526]
[1726064694179,0.05680623,56015.0,56014.0,0.892632]
[1726064694384,0.05680623,56015.0,56014.0,1.249685]
[1726064694606,0.05680623,56015.0,56014.0,1.272685]
[1726064694959,0.05680623,56015.0,56014.0,1.286685]
[1726064695443,0.05680623,56015.0,56014.0,0.535579]
[1726064695985,0.05680623,56015.0,56014.0,1.249685]
[1726064696212,0.05680623,56015.0,56014.0,1.3746535]
[1726064696505,0.05680623,56015.0,56014.0,1.7651535]
[1726064696714,0.05680623,56015.0,56014.0,2.1222065]
[1726064696972,0.05680623,56015.0,56014.0,2.3387065]
[1726064697201,0.05680623,56015.0,56014.0,2.3746165]
[1726064697898,0.05680623,56015.0,56014.0,2.8196695]
[1726064698111,0.028811,56015.0,56014.0,2.8216695]
[1726064698333,0.02799228,56020.0,56019.0,2.697525]
[1726064698548,0.000814,56022.0,56021.0,0.12391]
[1726064698758,0.000814,56022.0,56021.0,2.144846]
[1726064698989,0.000814,56022.0,56021.0,2.699454]
[1726064699192,0.0021166,56032.0,56031.0,1.642162]
[1726064699597,0.0021166,56032.0,56031.0,1.249307]
[1726064699851,0.0021166,56032.0,56031.0,1.272307]
[1726064700515,0.0021166,56032.0,56031.0,1.249307]
[1726064700730,0.0021166,56032.0,56031.0,1.629252]
[1726064700960,0.0021166,56032.0,56031.0,1.308217]
[1726064701173,0.0021166,56032.0,56031.0,0.915362]
[1726064701396,0.0021166,56032.0,56031.0,1.4410897]
[1726064701623,0.0021166,56032.0,56031.0,0.915362]
[1726064701836,0.0021166,56032.0,56031.0,0.892362]
[1726064702051,0.184015,56036.0,56032.0,0.892345]
[1726064702052,0.000815,56036.0,56032.0,0.892345]
[1726064702260,0.0049128,56033.0,56032.0,1.249283]
[1726064702496,0.0049128,56033.0,56032.0,0.535407]
[1726064702931,0.0049128,56033.0,56032.0,0.178469]
[1726064703156,0.0049128,56033.0,56032.0,0.915345]
[1726064703708,0.0049128,56033.0,56032.0,1.272283]
[1726064703958,0.0049128,56033.0,56032.0,1.679283]
[1726064704168,0.0049128,56033.0,56032.0,2.637959]
[1726064704380,0.0049128,56033.0,56032.0,2.81412855]
[1726064704811,0.0049128,56033.0,56032.0,2.45719055]
[1726064705069,0.0049128,56033.0,56032.0,2.49301055]
[1726064705305,0.000815,56043.0,56042.0,0.178437]
[1726064705550,0.000815,56043.0,56042.0,1.615607]
[1726064705781,0.02798104,56059.0,56049.0,1.038895]
[1726064706009,0.02798104,56059.0,56049.0,2.41649725]
[1726064706264,6e-07,56050.0,56049.0,2.96560643]
[1726064706472,6e-07,56050.0,56049.0,2.321355]
[1726064707645,6e-07,56050.0,56049.0,2.291355]
[1726064707870,6e-07,56050.0,56049.0,2.49752455]
[1726064708536,6e-07,56050.0,56049.0,2.43752455]
[1726064708967,6e-07,56050.0,56049.0,2.46305843]
[1726064709219,6e-07,56050.0,56049.0,2.49305843]
[1726064709420,6e-07,56050.0,56049.0,2.43305843]
[1726064709624,6e-07,56050.0,56049.0,2.44705843]
[1726064710127,6e-07,56050.0,56049.0,1.665425]
[1726064710361,6e-07,56050.0,56049.0,1.284725]
[1726064710565,6e-07,56050.0,56049.0,0.571065]
[1726064710786,6e-07,56050.0,56049.0,0.903075]
[1726064710787,0.00597876,56050.0,56049.0,0.903075]
[1726064711024,0.00597876,56050.0,56049.0,0.36783]
[1726064711239,0.00597876,56050.0,56049.0,0.903075]
[1726064711901,0.00597876,56050.0,56049.0,0.6722379]
[1726064712119,0.00597876,56050.0,56049.0,0.903075]
[1726064712349,0.00597876,56050.0,56049.0,0.189415]
[1726064712562,0.5,56045.0,56038.0,0.3991]
[1726064712817,0.199,56044.0,56039.0,0.178446]
[1726064713041,0.00646612,56043.0,56041.0,0.178439]
[1726064713270,0.5,56038.0,56037.0,0.892267]
[1726064713489,0.5,56038.0,56037.0,0.53536]
[1726064713706,0.50638205,56038.0,56037.0,0.53536]
[1726064713926,0.53436624,56038.0,56037.0,0.892267]
[1726064714372,0.53436624,56038.0,56032.0,0.356937]
[1726064714594,0.5,56032.0,56027.0,0.178483]
[1726064715005,0.35,56028.0,56022.0,0.001632]
[1726064715007,0.35,56028.0,56022.0,0.180133]
[1726064715008,0.5,56023.0,56022.0,0.180133]
[1726064715218,0.5,56023.0,56022.0,0.537135]
[1726064715435,0.20365835,56031.0,56022.0,0.001632]
[1726064715436,0.02798966,56031.0,56022.0,0.001632]
[1726064715676,0.02798966,56031.0,56030.0,0.535426]
[1726064715677,0.03445578,56031.0,56030.0,0.535426]
[1726064715892,0.02798966,56031.0,56030.0,0.9856596]
[1726064716146,0.02798966,56031.0,56030.0,1.3784306]
[1726064716581,0.02798966,56031.0,56030.0,0.535426]
[1726064717024,0.02798966,56031.0,56030.0,0.892377]
[1726064717732,0.02798966,56031.0,56030.0,0.97091088]
[1726064717951,0.50646612,56045.0,56043.0,0.535302]
[1726064717952,0.53181876,56044.0,56043.0,0.535302]
[1726064718187,0.5,56045.0,56044.0,0.558293]
[1726064718409,0.50646612,56045.0,56041.0,0.35688]
[1726064718629,0.00646612,56044.0,56034.0,0.03582]
[1726064718897,0.00646612,56044.0,56043.0,0.178434]
[1726064719140,0.02798284,56045.0,56044.0,1.272017]
[1726064719387,0.02798284,56045.0,56044.0,1.671017]
[1726064719827,0.02798284,56045.0,56044.0,2.063699]
[1726064720500,0.02798284,56045.0,56044.0,2.50409488]
[1726064720723,0.5,56059.0,56049.0,0.950895]
[1726064720724,0.50646612,56059.0,56049.0,0.950895]
[1726064720951,0.50646612,56059.0,56049.0,1.307725]
[1726064721438,0.50646612,56059.0,56049.0,1.664555]
[1726064721639,0.5,56059.0,56049.0,1.664555]
[1726064721875,0.5,56059.0,56049.0,1.307725]
[1726064722560,0.50646612,56059.0,56049.0,1.307725]
[1726064722835,0.5,56053.0,56049.0,1.307725]
[1726064723292,0.00692578,56050.0,56049.0,1.307725]
[1726064723511,0.000816,56050.0,56049.0,1.307725]
[1726064723737,0.00708792,56050.0,56049.0,0.214235]
[1726064723974,0.5,56046.0,56045.0,0.178428]
[1726064724200,0.5,56048.0,56047.0,0.892107]
[1726064724415,0.5,56048.0,56047.0,1.33056722]
[1726064724633,0.50627192,56048.0,56047.0,1.33056722]
[1726064724850,0.00627192,56048.0,56047.0,1.33056722]
[1726064725095,0.00627192,56048.0,56047.0,2.26411022]
[1726064725353,0.000816,56050.0,56049.0,0.892075]
[1726064725569,0.000816,56050.0,56049.0,1.44807455]
[1726064725791,0.00716087,56050.0,56049.0,1.44807455]
[1726064726751,0.000816,56050.0,56049.0,1.44807455]
[1726064726951,0.00716087,56050.0,56049.0,0.915075]
[1726064727166,0.00716087,56050.0,56049.0,1.271905]
[1726064727381,0.00716087,56050.0,56049.0,0.915075]
[1726064727593,0.00716087,56050.0,56049.0,1.281905]
[1726064727814,0.00716087,56050.0,56049.0,1.0532655]
[1726064728073,0.00716087,56050.0,56049.0,1.4100955]
[1726064728288,0.00716087,56050.0,56049.0,2.24445938]
[1726064728525,0.00716087,56050.0,56049.0,2.44005938]
[1726064728760,0.00716087,56050.0,56049.0,2.40805938]
[1726064728761,0.000816,56050.0,56049.0,2.40805938]
[1726064729002,0.000816,56050.0,56049.0,1.675905]
[1726064729722,0.000816,56050.0,56049.0,1.665905]
[1726064729950,0.02879165,56050.0,56049.0,1.665905]
[1726064730699,0.02879165,56050.0,56049.0,1.271905]
[1726064730918,0.02879165,56050.0,56049.0,1.280905]
[1726064731355,0.02879165,56050.0,56049.0,1.271905]
[1726064731797,0.02879165,56050.0,56049.0,1.284905]
[1726064731798,0.03519635,56050.0,56049.0,1.284905]
[1726064732033,0.03519635,56050.0,56049.0,1.3393656]
[1726064732496,0.0072207,56050.0,56049.0,1.3393656]
[1726064732966,0.0072207,56050.0,56049.0,1.284905]
[1726064733210,0.000816,56050.0,56049.0,1.284905]
[1726064733892,0.000816,56050.0,56049.0,1.320725]
[1726064733893,0.00718005,56050.0,56049.0,1.320725]
[1726064734125,0.000816,56050.0,56049.0,1.320725]
[1726064734353,0.00718896,56050.0,56049.0,1.307725]
[1726064734598,0.00718896,56050.0,56049.0,1.44235089]
[1726064734814,0.000816,56050.0,56049.0,1.79918089]
[1726064735246,0.000816,56050.0,56049.0,1.80818089]
[1726064735457,0.02879152,56050.0,56049.0,1.80818089]
[1726064735680,0.02879152,56050.0,56049.0,1.79918089]
[1726064736358,0.02879152,56050.0,56049.0,1.307725]
[1726064736570,0.52879152,56050.0,56049.0,0.571065]
[1726064736817,0.53518287,56050.0,56049.0,0.535245]
[1726064737034,0.53518287,56050.0,56049.0,0.892075]
[1726064737476,0.53518287,56050.0,56049.0,1.248905]
[1726064738152,0.03518287,56050.0,56049.0,1.4326155]
[1726064738390,0.03518287,56050.0,56049.0,1.7894455]
[1726064738873,0.03518287,56050.0,56049.0,1.8034455]
[1726064739092,0.03518287,56050.0,56049.0,1.7676255]
[1726064739347,0.03518287,56050.0,56049.0,1.271905]
[1726064739578,0.03518287,56050.0,56049.0,1.316725]
[1726064740219,0.03518287,56050.0,56049.0,1.307725]
[1726064740432,0.03518287,56050.0,56049.0,1.271905]
[1726064740665,0.03518287,56050.0,56049.0,1.277905]
[1726064740860,0.00720735,56050.0,56049.0,1.277905]
[1726064741317,0.50720735,56050.0,56049.0,0.898075]
[1726064741570,0.70300735,56050.0,56049.0,0.541245]
[1726064741782,0.70300735,56050.0,56049.0,0.184415]
[1726064742034,0.78161277,56050.0,56049.0,0.541245]
[1726064742269,0.8142807,56050.0,56049.0,0.006]
[1726064742531,0.70947347,56050.0,56048.0,0.178417]
[1726064742749,0.54173012,56047.0,56046.0,0.00163]
[1726064743005,0.89857312,56047.0,56046.0,0.00163]
[1726064743232,0.89857312,56047.0,56020.0,0.02353388]
[1726064743233,0.5,56025.0,56024.0,0.356987]
[1726064743499,0.5,56025.0,56017.0,0.002874]
[1726064743500,0.18496412,56023.0,56017.0,0.002874]
[1726064743768,0.00646612,56023.0,56017.0,0.002874]
[1726064743981,0.00646612,56023.0,56019.0,0.178509]
[1726064743982,0.01281158,56023.0,56019.0,0.178509]
[1726064744211,0.54830558,56023.0,56017.0,0.002874]
[1726064744436,1.90067353,56023.0,56017.0,0.002874]
[1726064744651,1.74257,56018.0,56017.0,0.002874]
[1726064744869,2.68025812,56018.0,56017.0,0.002874]
[1726064745125,2.69526412,56018.0,56017.0,0.002874]
[1726064745376,2.73360958,56018.0,56017.0,0.002874]
[1726064745593,2.73360958,56018.0,55991.0,0.0386946]
[1726064745594,2.21514112,56005.0,55991.0,0.0386946]
[1726064745843,0.00646612,56005.0,56004.0,0.1814326]
[1726064746078,0.57845042,56006.0,56005.0,0.178555]
[1726064746298,0.05231044,56007.0,56006.0,0.535656]
[1726064746552,0.05231044,56009.0,56008.0,0.178545]
[1726064746764,0.50646612,56012.0,56011.0,0.178536]
[1726064746993,0.50646612,56012.0,56011.0,0.535608]
[1726064747207,0.52799914,56012.0,56011.0,0.535608]
[1726064747431,0.60831081,56012.0,56011.0,0.535608]
[1726064747693,0.60831081,56012.0,56007.0,0.3591796]
[1726064747694,0.35,56008.0,56007.0,0.3591796]
[1726064747917,0.00646612,56010.0,56009.0,0.178542]
[1726064748151,0.00646612,56010.0,56009.0,1.249797]
[1726064748397,0.05600037,56012.0,56011.0,0.89268]
[1726064748632,0.05600037,56012.0,56011.0,1.249752]
[1726064748884,0.05600037,56012.0,56011.0,2.036644]
[1726064749115,0.05600037,56012.0,56011.0,2.059644]
[1726064749337,0.05600037,56012.0,56011.0,2.23581355]
[1726064750922,0.02800123,56012.0,56011.0,2.23581355]
[1726064751154,0.02800123,56012.0,56011.0,2.24781355]
[1726064751602,0.02800123,56012.0,56011.0,2.071644]
[1726064751814,0.02800123,56012.0,56011.0,2.059644]
[1726064753149,0.02800123,56012.0,56011.0,1.702572]
[1726064753619,0.02800123,56012.0,56011.0,1.714572]
[1726064753835,0.02800123,56012.0,56011.0,2.073644]
[1726064754059,0.02800123,56012.0,56011.0,1.702572]
[1726064754287,0.02800123,56012.0,56011.0,1.714572]
[1726064754960,0.02800123,56012.0,56011.0,1.702572]
[1726064755174,0.02800123,56012.0,56011.0,0.90668]
[1726064755402,0.53405273,56012.0,56011.0,0.549608]
[1726064756051,0.53405273,56012.0,56011.0,0.014]
[1726064756052,0.54051885,56012.0,56011.0,0.014]
[1726064756250,0.54051885,56012.0,56011.0,0.549608]
[1726064756732,0.54051885,56012.0,56011.0,0.90668]
[1726064757167,0.53405273,56012.0,56011.0,1.35462826]
[1726064757396,0.03405273,56012.0,56011.0,1.299572]
[1726064757608,0.02800123,56012.0,56011.0,1.665644]
[1726064758073,0.02800123,56012.0,56011.0,1.284752]
[1726064758298,0.02800123,56012.0,56011.0,0.90468]
[1726064758531,0.02800123,56012.0,56011.0,0.535608]
[1726064758775,0.02800123,56012.0,56011.0,0.90068]
[1726064759213,0.03446735,56012.0,56011.0,0.008]
[1726064759436,0.03446735,56012.0,56007.0,0.0020826]
[1726064759437,0.949,56008.0,56007.0,0.0020826]
[1726064759668,0.95546612,56008.0,56007.0,0.0020826]
[1726064759883,1.13401112,56008.0,56007.0,0.0020826]
[1726064760118,1.84819312,56008.0,56007.0,0.0020826]
[1726064760358,2.305981,56008.0,56007.0,0.0020826]
[1726064760602,2.20728412,56008.0,56007.0,0.0020826]
[1726064760842,2.33768305,56008.0,56004.0,0.001632]
[1726064761086,1.39223712,55994.0,55993.0,0.0031512]
[1726064761352,1.45706612,55994.0,55993.0,0.0031512]
[1726064762260,1.63565612,55994.0,55993.0,0.0031512]
[1726064762510,1.04186612,55994.0,55993.0,0.1817442]
[1726064762729,0.85646612,55994.0,55993.0,0.5389312]
[1726064763164,0.85646612,55994.0,55993.0,0.1817442]
[1726064763375,0.85646612,55994.0,55993.0,0.0031512]
[1726064764482,1.74941812,55994.0,55993.0,0.0031512]
[1726064764709,1.39223712,55994.0,55993.0,0.0031512]
[1726064764962,1.77742851,55994.0,55993.0,0.0031512]
[1726064765189,1.42024751,55994.0,55993.0,0.0031512]
[1726064765653,1.06306651,55994.0,55993.0,0.0031512]
[1726064765880,1.77742851,55994.0,55993.0,0.0031512]
[1726064766337,1.42024751,55994.0,55993.0,0.0031512]
[1726064767023,1.06306651,55994.0,55993.0,0.0031512]
[1726064767262,1.77742851,55994.0,55993.0,0.0031512]
[1726064767488,1.42024751,55994.0,55993.0,0.0031512]
[1726064767781,1.42024751,55994.0,55993.0,0.5389312]
[1726064767782,0.52801039,55994.0,55993.0,0.5389312]
[1726064768022,0.52801039,55994.0,55993.0,1.6450052]
[1726064768244,1.224,56001.0,55994.0,0.16450052]
[1726064768466,1.224,56001.0,55993.0,0.7750382]
[1726064768467,0.02800123,56012.0,56011.0,0.237356]
[1726064768722,0.02800123,56012.0,56011.0,1.3346]
[1726064768985,0.02800123,56012.0,56011.0,0.941708]
[1726064769223,0.02800123,56012.0,56011.0,0.178536]
[1726064769224,0.56246507,56012.0,56011.0,0.178536]
[1726064769474,0.56246507,56012.0,56007.0,0.023]
[1726064769724,0.56246507,56012.0,56004.0,0.023]
[1726064769952,0.56246507,56012.0,56006.0,0.535649]
[1726064769953,0.00646612,56010.0,56006.0,0.535649]
[1726064770184,0.00646612,56010.0,56008.0,0.178543]
[1726064770419,0.55599895,56012.0,56011.0,0.89268]
[1726064770420,0.02800123,56012.0,56011.0,0.89268]
[1726064770631,0.02800123,56012.0,56011.0,0.91568]
[1726064770861,0.02800123,56012.0,56011.0,1.007248]
[1726064771299,0.02800123,56012.0,56011.0,1.36432]
[1726064771982,0.02881723,56012.0,56011.0,1.272752]
[1726064772425,0.02881723,56012.0,56011.0,0.91568]
[1726064773293,0.02881723,56012.0,56003.0,0.4176]
[1726064773294,0.50646612,56011.0,56007.0,0.023]
[1726064773559,0.50646612,56011.0,56008.0,0.35709]
[1726064773776,0.50646612,56011.0,56010.0,0.178539]
[1726064774002,0.50646612,56011.0,56010.0,0.535618]
[1726064774275,0.5,56011.0,56010.0,0.892697]
[1726064774490,0.0568151,56012.0,56011.0,1.249752]
[1726064774721,0.0568151,56012.0,56011.0,0.91568]
[1726064774938,0.0568151,56012.0,56011.0,0.178536]
[1726064775154,0.5,56011.0,56007.0,0.357095]
[1726064775367,0.5,56011.0,56008.0,0.178542]
[1726064775590,0.68502512,56004.0,56000.0,0.178569]
[1726064775813,0.68502512,56004.0,55997.0,0.39298]
[1726064775814,0.5,55998.0,55997.0,0.2144]
[1726064776068,0.5,55998.0,55997.0,0.571561]
[1726064776280,0.5,55998.0,55997.0,0.03582]
[1726064776499,0.52800344,55998.0,55997.0,0.03582]
[1726064776740,0.52800344,55998.0,55997.0,0.2144]
[1726064777000,0.00646612,55996.0,55993.0,0.0047832]
[1726064777469,0.00646612,55996.0,55994.0,0.357178]
[1726064777691,0.53446956,55998.0,55997.0,0.535741]
[1726064777921,0.00646612,55996.0,55995.0,0.178587]
[1726064778134,0.00646612,55996.0,55994.0,0.357178]
[1726064778361,0.00646612,55996.0,55995.0,0.178587]
[1726064778591,0.00646612,55996.0,55995.0,0.535761]
[1726064778828,0.00646612,55996.0,55995.0,0.178587]
[1726064779264,0.00646612,55996.0,55995.0,0.535761]
[1726064779504,0.00646612,55996.0,55995.0,0.892935]
[1726064779737,0.52800344,55998.0,55997.0,1.273063]
[1726064779998,0.50646612,55998.0,55997.0,0.023]
[1726064780211,0.50646612,55998.0,55993.0,0.0047832]
[1726064780422,0.50646612,55998.0,55997.0,0.17858]
[1726064781081,0.50646612,55998.0,55994.0,0.023]
[1726064781312,0.50646612,55998.0,55997.0,0.17858]
[1726064781746,0.50646612,55998.0,55994.0,0.023]
[1726064781747,0.50646612,55998.0,55994.0,0.201589]
[1726064782000,0.50646612,55998.0,55993.0,0.0047832]
[1726064782001,0.89223712,55994.0,55993.0,0.0047832]
[1726064782221,0.35646612,55994.0,55993.0,0.0047832]
[1726064782677,0.53505612,55994.0,55993.0,0.0047832]
[1726064782925,1.24941812,55994.0,55993.0,0.0047832]
[1726064783373,1.27742737,55994.0,55993.0,0.0047832]
[1726064783812,1.28885036,55994.0,55993.0,0.0047832]
[1726064784285,1.64603136,55994.0,55993.0,0.0047832]
[1726064784724,2.00521236,55994.0,55993.0,0.0047832]
[1726064784956,2.00521236,55994.0,55989.0,0.001632]
[1726064784957,1.39948112,55990.0,55989.0,0.001632]
[1726064785194,1.95628712,55990.0,55989.0,0.001632]
[1726064785875,1.95428712,55990.0,55989.0,0.001632]
[1726064786848,1.59708112,55990.0,55989.0,0.001632]
[1726064787032,1.23987512,55990.0,55989.0,0.001632]
[1726064787254,0.50646612,55990.0,55989.0,0.001632]
[1726064787465,1.04227512,55990.0,55989.0,0.001632]
[1726064788412,0.68506912,55990.0,55989.0,0.001632]
[1726064788825,1.04227512,55990.0,55989.0,0.001632]
[1726064789054,1.04227512,55990.0,55989.0,0.537451]
[1726064789055,0.50646612,55990.0,55989.0,0.537451]
[1726064789531,0.53447651,55990.0,55989.0,0.001632]
[1726064789747,1.04227512,55990.0,55989.0,0.001632]
[1726064789979,1.04227512,55990.0,55989.0,0.537451]
[1726064789980,0.5,55990.0,55989.0,0.537451]
[1726064790203,0.50646612,55990.0,55989.0,0.180238]